[Event "November 21 Late 2023"]
[Site "https://www.chess.com"]
[Date "2023.11.21"]
[Round "1"]
[White "Sturt, Raven"]
[Black "Silvestre, Christian"]
[Result "1-0"]
[Board "123"]
[TimeControl "180+1"]
[WhiteFideId "2007304"]
[BlackFideId "30956269"]
[WhiteElo "2408"]
[BlackElo "2319"]
[WhiteTeam "USA"]
[BlackTeam "USA"]
[WhiteClock "0:00:33"]
[BlackClock "0:00:00"]

1. f4 {[%clk 0:03:00]}  d6 {[%clk 0:02:54]} 2. Nf3 {[%clk 0:03:01]}  g6 {[%clk 0:02:54]} 3. e4 {[%clk 0:03:00]}  Bg7 {[%clk 0:02:54]} 4. d4 {[%clk 0:02:58]}  c5 {[%clk 0:02:55]} 5. dxc5 {[%clk 0:02:55]}  Qa5+ {[%clk 0:02:54]} 6. Nc3 {[%clk 0:02:53]}  Qxc5 {[%clk 0:02:50]} 7. Bd3 {[%clk 0:02:51]}  Nc6 {[%clk 0:02:41]} 8. Nd5 {[%clk 0:02:49]}  Qa5+ {[%clk 0:02:24]} 9. Bd2 {[%clk 0:02:24]}  Qd8 {[%clk 0:02:21]} 10. Bc3 {[%clk 0:02:24]}  Bxc3+ {[%clk 0:02:20]} 11. Nxc3 {[%clk 0:02:24]}  Nf6 {[%clk 0:02:16]} 12. O-O {[%clk 0:02:24]}  O-O {[%clk 0:02:14]} 13. Kh1 {[%clk 0:02:24]}  Qb6 {[%clk 0:02:10]} 14. Qd2 {[%clk 0:02:23]}  Be6 {[%clk 0:01:58]} 15. f5 {[%clk 0:02:22]}  Bd7 {[%clk 0:01:54]} 16. Rab1 {[%clk 0:01:32]}  Ne5 {[%clk 0:01:45]} 17. Qh6 {[%clk 0:01:27]}  Neg4 {[%clk 0:01:17]} 18. Qh4 {[%clk 0:01:26]}  Rac8 {[%clk 0:01:13]} 19. Ng5 {[%clk 0:01:24]}  h6 {[%clk 0:01:06]} 20. Nf3 {[%clk 0:01:11]}  g5 {[%clk 0:00:55]} 21. Nxg5 {[%clk 0:01:09]}  hxg5 {[%clk 0:00:54]} 22. Qxg5+ {[%clk 0:01:10]}  Kh7 {[%clk 0:00:50]} 23. Qh4+ {[%clk 0:01:06]}  Nh6 {[%clk 0:00:48]} 24. Rf3 {[%clk 0:01:00]}  Rxc3 {[%clk 0:00:30]} 25. Rh3 {[%clk 0:00:59]}  Ng8 {[%clk 0:00:28]} 26. e5 {[%clk 0:00:55]}  Rxd3 {[%clk 0:00:26]} 27. cxd3 {[%clk 0:00:54]}  Bxf5 {[%clk 0:00:26]} 28. Rg3 {[%clk 0:00:54]}  dxe5 {[%clk 0:00:20]} 29. Rf1 {[%clk 0:00:54]}  Bg6 {[%clk 0:00:20]} 30. b3 {[%clk 0:00:53]}  Qe6 {[%clk 0:00:18]} 31. Qb4 {[%clk 0:00:52]}  b6 {[%clk 0:00:18]} 32. Qa4 {[%clk 0:00:52]}  a5 {[%clk 0:00:16]} 33. Rgf3 {[%clk 0:00:50]}  f5 {[%clk 0:00:14]} 34. Re1 {[%clk 0:00:49]}  Nf6 {[%clk 0:00:14]} 35. Qb5 {[%clk 0:00:48]}  e4 {[%clk 0:00:14]} 36. Rh3 {[%clk 0:00:46]}  Ng4 {[%clk 0:00:11]} 37. Rg3 {[%clk 0:00:42]}  Qf6 {[%clk 0:00:10]} 38. Qd5 {[%clk 0:00:33]}  Qd4 {[%clk 0:00:00]} 39. Qxd4 {[%clk 0:00:33]} 1-0

[Event "November 21 Late 2023"]
[Site "https://www.chess.com"]
[Date "2023.11.21"]
[Round "1"]
[White "Milchev, Nikolay"]
[Black "Rose, Felix"]
[Result "1-0"]
[Board "125"]
[TimeControl "180+1"]
[WhiteFideId "2906090"]
[BlackFideId "5105722"]
[WhiteElo "2449"]
[BlackElo "2039"]
[WhiteTeam "ENG"]
[BlackTeam "MEX"]
[WhiteClock "0:00:57"]
[BlackClock "0:00:02"]

1. Nf3 {[%clk 0:03:00]}  d5 {[%clk 0:02:59]} 2. c4 {[%clk 0:03:00]}  e6 {[%clk 0:02:59]} 3. g3 {[%clk 0:03:00]}  Nf6 {[%clk 0:02:59]} 4. Bg2 {[%clk 0:03:01]}  Be7 {[%clk 0:02:56]} 5. O-O {[%clk 0:03:01]}  O-O {[%clk 0:02:56]} 6. d4 {[%clk 0:03:01]}  dxc4 {[%clk 0:02:53]} 7. Qa4 {[%clk 0:03:01]}  c5 {[%clk 0:02:51]} 8. dxc5 {[%clk 0:03:00]}  Qc7 {[%clk 0:02:45]} 9. Qxc4 {[%clk 0:02:51]}  Qxc5 {[%clk 0:02:45]} 10. Qb3 {[%clk 0:02:50]}  Nc6 {[%clk 0:02:44]} 11. Be3 {[%clk 0:02:49]}  Qb4 {[%clk 0:02:44]} 12. Qc2 {[%clk 0:02:48]}  Bd7 {[%clk 0:02:42]} 13. a3 {[%clk 0:02:45]}  Qg4 {[%clk 0:02:35]} 14. h3 {[%clk 0:02:45]}  Qg6 {[%clk 0:02:34]} 15. Qxg6 {[%clk 0:02:44]}  hxg6 {[%clk 0:02:35]} 16. Rd1 {[%clk 0:02:44]}  Rfd8 {[%clk 0:02:34]} 17. Nc3 {[%clk 0:02:44]}  Be8 {[%clk 0:02:34]} 18. b4 {[%clk 0:02:36]}  a6 {[%clk 0:02:30]} 19. Nd2 {[%clk 0:02:24]}  Rd7 {[%clk 0:02:04]} 20. Nc4 {[%clk 0:02:20]}  Rad8 {[%clk 0:02:02]} 21. Rxd7 {[%clk 0:02:18]}  Rxd7 {[%clk 0:02:02]} 22. Rc1 {[%clk 0:02:13]}  Rd8 {[%clk 0:01:30]} 23. g4 {[%clk 0:01:59]}  Nd7 {[%clk 0:01:03]} 24. Ne4 {[%clk 0:01:49]}  Nde5 {[%clk 0:00:46]} 25. Nxe5 {[%clk 0:01:38]}  Nxe5 {[%clk 0:00:45]} 26. Nc5 {[%clk 0:01:38]}  Bxc5 {[%clk 0:00:39]} 27. Rxc5 {[%clk 0:01:39]}  Nc6 {[%clk 0:00:32]} 28. b5 {[%clk 0:01:34]}  axb5 {[%clk 0:00:32]} 29. Rxb5 {[%clk 0:01:35]}  Rd1+ {[%clk 0:00:22]} 30. Kh2 {[%clk 0:01:35]}  Nd8 {[%clk 0:00:23]} 31. Ra5 {[%clk 0:01:27]}  Bc6 {[%clk 0:00:22]} 32. Ra8 {[%clk 0:01:25]}  Bxg2 {[%clk 0:00:19]} 33. Kxg2 {[%clk 0:01:26]}  Kh7 {[%clk 0:00:19]} 34. Rb8 {[%clk 0:01:23]}  Rd7 {[%clk 0:00:17]} 35. a4 {[%clk 0:01:19]}  Nc6 {[%clk 0:00:18]} 36. Ra8 {[%clk 0:01:19]}  f6 {[%clk 0:00:17]} 37. a5 {[%clk 0:01:17]}  g5 {[%clk 0:00:17]} 38. Bb6 {[%clk 0:01:17]}  Kg6 {[%clk 0:00:16]} 39. f3 {[%clk 0:01:16]}  Kf7 {[%clk 0:00:15]} 40. Kf2 {[%clk 0:01:17]}  e5 {[%clk 0:00:15]} 41. Kg3 {[%clk 0:01:16]}  Ke6 {[%clk 0:00:16]} 42. h4 {[%clk 0:01:17]}  gxh4+ {[%clk 0:00:16]} 43. Kxh4 {[%clk 0:01:18]}  Nd4 {[%clk 0:00:14]} 44. Bxd4 {[%clk 0:01:16]}  exd4 {[%clk 0:00:15]} 45. Kh5 {[%clk 0:01:15]}  Kf7 {[%clk 0:00:14]} 46. Kh4 {[%clk 0:01:14]}  Ke6 {[%clk 0:00:11]} 47. Rg8 {[%clk 0:01:13]}  Kf7 {[%clk 0:00:10]} 48. Ra8 {[%clk 0:01:10]}  Kg6 {[%clk 0:00:10]} 49. Ra7 {[%clk 0:01:09]}  Rd5 {[%clk 0:00:10]} 50. Kg3 {[%clk 0:01:08]}  Rb5 {[%clk 0:00:10]} 51. Kf4 {[%clk 0:01:08]}  Rb2 {[%clk 0:00:09]} 52. Ke4 {[%clk 0:01:05]}  Rxe2+ {[%clk 0:00:09]} 53. Kxd4 {[%clk 0:01:06]}  Rb2 {[%clk 0:00:10]} 54. Kc3 {[%clk 0:01:05]}  Rb1 {[%clk 0:00:10]} 55. f4 {[%clk 0:01:03]}  f5 {[%clk 0:00:11]} 56. g5 {[%clk 0:01:03]}  Kh5 {[%clk 0:00:11]} 57. a6 {[%clk 0:01:03]}  bxa6 {[%clk 0:00:11]} 58. Rxg7 {[%clk 0:01:04]}  Rf1 {[%clk 0:00:10]} 59. Kd4 {[%clk 0:01:02]}  Rxf4+ {[%clk 0:00:10]} 60. Ke5 {[%clk 0:01:02]}  Rg4 {[%clk 0:00:10]} 61. Kxf5 {[%clk 0:01:02]}  Kh4 {[%clk 0:00:05]} 62. Rh7+ {[%clk 0:00:59]}  Kg3 {[%clk 0:00:06]} 63. g6 {[%clk 0:00:58]}  a5 {[%clk 0:00:06]} 64. Rh1 {[%clk 0:00:57]}  a4 {[%clk 0:00:02]} 65. Rg1+ {[%clk 0:00:57]} 1-0

[Event "November 21 Late 2023"]
[Site "https://www.chess.com"]
[Date "2023.11.21"]
[Round "1"]
[White "Estrategia_vs_Tactica"]
[Black "TheKnightOfBosnia"]
[Result "0-1"]
[Board "126"]
[TimeControl "180+1"]
[WhiteElo "2309"]
[BlackElo "2586"]
[WhiteClock "0:01:16"]
[BlackClock "0:00:13"]

1. e4 {[%clk 0:02:56]}  e5 {[%clk 0:02:59]} 2. Nf3 {[%clk 0:02:51]}  Nc6 {[%clk 0:02:59]} 3. Bc4 {[%clk 0:02:51]}  Nf6 {[%clk 0:02:59]} 4. d3 {[%clk 0:02:51]}  Bc5 {[%clk 0:02:58]} 5. O-O {[%clk 0:02:51]}  d6 {[%clk 0:02:57]} 6. c3 {[%clk 0:02:52]}  a5 {[%clk 0:02:56]} 7. a4 {[%clk 0:02:52]}  h6 {[%clk 0:02:56]} 8. Re1 {[%clk 0:02:50]}  O-O {[%clk 0:02:53]} 9. Be3 {[%clk 0:02:49]}  Bxe3 {[%clk 0:02:52]} 10. Rxe3 {[%clk 0:02:50]}  Ne7 {[%clk 0:02:51]} 11. Nbd2 {[%clk 0:02:50]}  Ng6 {[%clk 0:02:48]} 12. d4 {[%clk 0:02:49]}  c6 {[%clk 0:02:47]} 13. d5 {[%clk 0:02:46]}  cxd5 {[%clk 0:02:30]} 14. exd5 {[%clk 0:02:45]}  Ng4 {[%clk 0:02:24]} 15. Re1 {[%clk 0:02:44]}  f5 {[%clk 0:02:24]} 16. Nf1 {[%clk 0:02:40]}  e4 {[%clk 0:02:13]} 17. Nd4 {[%clk 0:02:39]}  Qh4 {[%clk 0:02:13]} 18. Qd2 {[%clk 0:02:27]}  N6e5 {[%clk 0:02:04]} 19. Bb5 {[%clk 0:02:22]}  Rf6 {[%clk 0:01:45]} 20. h3 {[%clk 0:02:14]}  Rg6 {[%clk 0:01:28]} 21. hxg4 {[%clk 0:02:13]}  Rxg4 {[%clk 0:01:28]} 22. Qe3 {[%clk 0:01:45]}  f4 {[%clk 0:01:04]} 23. Qxe4 {[%clk 0:01:45]}  f3 {[%clk 0:01:03]} 24. Nxf3 {[%clk 0:01:46]}  Rxg2+ {[%clk 0:00:23]} 25. Kxg2 {[%clk 0:01:42]}  Qh3+ {[%clk 0:00:23]} 26. Kg1 {[%clk 0:01:39]}  Nxf3+ {[%clk 0:00:24]} 27. Qxf3 {[%clk 0:01:36]}  Qxf3 {[%clk 0:00:25]} 28. Re3 {[%clk 0:01:29]}  Qg4+ {[%clk 0:00:20]} 29. Rg3 {[%clk 0:01:28]}  Qf4 {[%clk 0:00:19]} 30. Re1 {[%clk 0:01:24]}  Bf5 {[%clk 0:00:15]} 31. Re7 {[%clk 0:01:24]}  g6 {[%clk 0:00:14]} 32. Ne3 {[%clk 0:01:23]}  Rf8 {[%clk 0:00:13]} 33. Nxf5 {[%clk 0:01:19]}  Qxf5 {[%clk 0:00:14]} 34. Bd3 {[%clk 0:01:16]}  Qxf2+ {[%clk 0:00:13]} 35. Kh1 {[%clk 0:01:16]}  Qxg3 {[%clk 0:00:13]} 0-1

[Event "November 21 Late 2023"]
[Site "https://www.chess.com"]
[Date "2023.11.21"]
[Round "1"]
[White "Bettalli, Francesco"]
[Black "Mendez Machado, Andre"]
[Result "1-0"]
[Board "127"]
[TimeControl "180+1"]
[WhiteFideId "2816453"]
[BlackFideId "6603793"]
[WhiteElo "2226"]
[BlackElo "1950"]
[WhiteTeam "ITA"]
[BlackTeam "PAN"]
[WhiteClock "0:00:54"]
[BlackClock "0:00:01"]

1. d4 {[%clk 0:02:55]}  Nf6 {[%clk 0:02:59]} 2. Nc3 {[%clk 0:02:54]}  d5 {[%clk 0:02:58]} 3. Bf4 {[%clk 0:02:53]}  e6 {[%clk 0:02:57]} 4. Nb5 {[%clk 0:02:46]}  Na6 {[%clk 0:02:57]} 5. e3 {[%clk 0:02:45]}  Be7 {[%clk 0:02:57]} 6. a3 {[%clk 0:02:45]}  O-O {[%clk 0:02:57]} 7. Nf3 {[%clk 0:02:46]}  Nh5 {[%clk 0:02:55]} 8. Be5 {[%clk 0:02:43]}  c5 {[%clk 0:02:36]} 9. Bd3 {[%clk 0:02:39]}  c4 {[%clk 0:02:25]} 10. Be2 {[%clk 0:02:39]}  f6 {[%clk 0:01:59]} 11. Bg3 {[%clk 0:02:37]}  Qa5+ {[%clk 0:01:45]} 12. Nc3 {[%clk 0:02:36]}  b5 {[%clk 0:01:33]} 13. O-O {[%clk 0:02:32]}  Nxg3 {[%clk 0:01:33]} 14. hxg3 {[%clk 0:02:30]}  b4 {[%clk 0:01:13]} 15. axb4 {[%clk 0:02:31]}  Qxb4 {[%clk 0:01:14]} 16. Qd2 {[%clk 0:02:29]}  Rb8 {[%clk 0:01:03]} 17. Ra4 {[%clk 0:02:26]}  Qb6 {[%clk 0:00:55]} 18. Rfa1 {[%clk 0:02:25]}  Bb4 {[%clk 0:00:45]} 19. Qc1 {[%clk 0:02:04]}  Nc7 {[%clk 0:00:38]} 20. Rxa7 {[%clk 0:01:59]}  Bxc3 {[%clk 0:00:38]} 21. bxc3 {[%clk 0:01:59]}  Nb5 {[%clk 0:00:36]} 22. R7a5 {[%clk 0:01:45]}  Nxc3 {[%clk 0:00:35]} 23. Qd2 {[%clk 0:01:42]}  Ne4 {[%clk 0:00:30]} 24. Qc1 {[%clk 0:01:42]}  Qb2 {[%clk 0:00:15]} 25. Qxb2 {[%clk 0:01:30]}  Rxb2 {[%clk 0:00:16]} 26. Ne1 {[%clk 0:01:31]}  Nc3 {[%clk 0:00:16]} 27. Bg4 {[%clk 0:01:29]}  f5 {[%clk 0:00:16]} 28. Bf3 {[%clk 0:01:30]}  Bb7 {[%clk 0:00:16]} 29. Kh2 {[%clk 0:01:23]}  Rb8 {[%clk 0:00:15]} 30. g4 {[%clk 0:01:17]}  g6 {[%clk 0:00:13]} 31. gxf5 {[%clk 0:01:17]}  gxf5 {[%clk 0:00:14]} 32. Kg3 {[%clk 0:01:18]}  Bc6 {[%clk 0:00:14]} 33. Kf4 {[%clk 0:01:13]}  Kf7 {[%clk 0:00:13]} 34. Ke5 {[%clk 0:01:13]}  Rb1 {[%clk 0:00:09]} 35. Ra7+ {[%clk 0:01:13]}  Kg8 {[%clk 0:00:09]} 36. Kxe6 {[%clk 0:01:11]}  Rxa1 {[%clk 0:00:04]} 37. Rxa1 {[%clk 0:01:11]}  Re8+ {[%clk 0:00:03]} 38. Kd6 {[%clk 0:01:11]}  Bb7 {[%clk 0:00:02]} 39. Kd7 {[%clk 0:01:07]}  Rf8 {[%clk 0:00:02]} 40. Ra7 {[%clk 0:01:04]}  Ba8 {[%clk 0:00:02]} 41. Ke6 {[%clk 0:01:02]}  f4 {[%clk 0:00:03]} 42. exf4 {[%clk 0:01:00]}  Rxf4 {[%clk 0:00:03]} 43. Rxa8+ {[%clk 0:01:00]}  Kg7 {[%clk 0:00:03]} 44. Ra7+ {[%clk 0:00:57]}  Kg6 {[%clk 0:00:03]} 45. g3 {[%clk 0:00:56]}  Rxd4 {[%clk 0:00:03]} 46. Ng2 {[%clk 0:00:55]}  Rd2 {[%clk 0:00:03]} 47. Nf4+ {[%clk 0:00:56]}  Kg5 {[%clk 0:00:03]} 48. Rxh7 {[%clk 0:00:53]}  Rxf2 {[%clk 0:00:01]} 49. Rh5# {[%clk 0:00:54]} 1-0

[Event "November 21 Late 2023"]
[Site "https://www.chess.com"]
[Date "2023.11.21"]
[Round "1"]
[White "Harish, Neeraj"]
[Black "Erdogan, Anil Berk"]
[Result "0-1"]
[Board "128"]
[TimeControl "180+1"]
[WhiteFideId "30958130"]
[BlackFideId "6348173"]
[WhiteElo "1866"]
[BlackElo "2007"]
[WhiteTeam "USA"]
[BlackTeam "TUR"]
[WhiteClock "0:00:02"]
[BlackClock "0:00:19"]

1. e4 {[%clk 0:02:59]}  c5 {[%clk 0:02:54]} 2. Nf3 {[%clk 0:02:59]}  g6 {[%clk 0:02:51]} 3. d4 {[%clk 0:03:00]}  cxd4 {[%clk 0:02:51]} 4. Nxd4 {[%clk 0:03:00]}  Nc6 {[%clk 0:02:52]} 5. c4 {[%clk 0:03:00]}  Nf6 {[%clk 0:02:52]} 6. Nc3 {[%clk 0:02:59]}  d6 {[%clk 0:02:52]} 7. Be2 {[%clk 0:02:53]}  Nxd4 {[%clk 0:02:52]} 8. Qxd4 {[%clk 0:02:53]}  Bg7 {[%clk 0:02:53]} 9. Be3 {[%clk 0:02:54]}  O-O {[%clk 0:02:54]} 10. Qd2 {[%clk 0:02:53]}  Qa5 {[%clk 0:02:54]} 11. O-O {[%clk 0:02:32]}  Be6 {[%clk 0:02:54]} 12. Rac1 {[%clk 0:02:22]}  Rfc8 {[%clk 0:02:54]} 13. b3 {[%clk 0:02:22]}  a6 {[%clk 0:02:54]} 14. f3 {[%clk 0:01:49]}  b5 {[%clk 0:01:01]} 15. cxb5 {[%clk 0:01:06]}  axb5 {[%clk 0:00:58]} 16. Nxb5 {[%clk 0:01:02]}  Rxc1 {[%clk 0:00:46]} 17. Rxc1 {[%clk 0:00:46]}  Qxd2 {[%clk 0:00:46]} 18. Bxd2 {[%clk 0:00:46]}  Rxa2 {[%clk 0:00:47]} 19. Rd1 {[%clk 0:00:37]}  Bxb3 {[%clk 0:00:46]} 20. Rb1 {[%clk 0:00:31]}  Rxd2 {[%clk 0:00:43]} 21. Rxb3 {[%clk 0:00:31]}  Rxe2 {[%clk 0:00:43]} 22. h3 {[%clk 0:00:27]}  h5 {[%clk 0:00:31]} 23. Nd4 {[%clk 0:00:25]}  Rd2 {[%clk 0:00:30]} 24. Nc6 {[%clk 0:00:26]}  Bf8 {[%clk 0:00:26]} 25. Rb8 {[%clk 0:00:25]}  Kg7 {[%clk 0:00:27]} 26. e5 {[%clk 0:00:20]}  dxe5 {[%clk 0:00:25]} 27. Nxe5 {[%clk 0:00:21]}  Nd7 {[%clk 0:00:25]} 28. Nxd7 {[%clk 0:00:20]}  Rxd7 {[%clk 0:00:25]} 29. Ra8 {[%clk 0:00:20]}  e5 {[%clk 0:00:23]} 30. Kf2 {[%clk 0:00:20]}  Ra7 {[%clk 0:00:22]} 31. Rb8 {[%clk 0:00:18]}  Bc5+ {[%clk 0:00:22]} 32. Kg3 {[%clk 0:00:19]}  Ra2 {[%clk 0:00:21]} 33. Rb7 {[%clk 0:00:16]}  Bf2+ {[%clk 0:00:21]} 34. Kh2 {[%clk 0:00:16]}  h4 {[%clk 0:00:21]} 35. Rb1 {[%clk 0:00:14]}  Bg3+ {[%clk 0:00:20]} 36. Kg1 {[%clk 0:00:15]}  Rc2 {[%clk 0:00:20]} 37. Kf1 {[%clk 0:00:14]}  Bf4 {[%clk 0:00:21]} 38. Rb7 {[%clk 0:00:13]}  Be3 {[%clk 0:00:20]} 39. Rb3 {[%clk 0:00:11]}  Bd4 {[%clk 0:00:21]} 40. Rb7 {[%clk 0:00:02]}  Rf2+ {[%clk 0:00:20]} 41. Ke1 {[%clk 0:00:02]}  Rxg2 {[%clk 0:00:19]} 0-1

[Event "November 21 Late 2023"]
[Site "https://www.chess.com"]
[Date "2023.11.21"]
[Round "1"]
[White "Statham_l3"]
[Black "rikchessmx"]
[Result "1-0"]
[Board "129"]
[TimeControl "180+1"]
[WhiteElo "2584"]
[BlackElo "2307"]
[WhiteClock "0:01:20"]
[BlackClock "0:01:54"]

1. e4 {[%clk 0:02:57]}  e5 {[%clk 0:02:56]} 2. Nf3 {[%clk 0:02:57]}  Nc6 {[%clk 0:02:55]} 3. Bb5 {[%clk 0:02:57]}  Bc5 {[%clk 0:02:55]} 4. c3 {[%clk 0:02:56]}  Qf6 {[%clk 0:02:55]} 5. O-O {[%clk 0:02:51]}  Nge7 {[%clk 0:02:54]} 6. Bxc6 {[%clk 0:02:41]}  Nxc6 {[%clk 0:02:53]} 7. d4 {[%clk 0:02:40]}  exd4 {[%clk 0:02:53]} 8. e5 {[%clk 0:02:40]}  Qg6 {[%clk 0:02:49]} 9. cxd4 {[%clk 0:02:39]}  Bb6 {[%clk 0:02:50]} 10. d5 {[%clk 0:02:34]}  Ne7 {[%clk 0:02:42]} 11. Nc3 {[%clk 0:02:30]}  O-O {[%clk 0:02:41]} 12. Nh4 {[%clk 0:02:28]}  Bxf2+ {[%clk 0:02:33]} 13. Rxf2 {[%clk 0:02:29]}  Qb6 {[%clk 0:02:32]} 14. d6 {[%clk 0:02:16]}  Nc6 {[%clk 0:02:28]} 15. Nd5 {[%clk 0:02:12]}  Qa5 {[%clk 0:02:24]} 16. b4 {[%clk 0:01:36]}  Nxb4 {[%clk 0:02:18]} 17. Ne7+ {[%clk 0:01:28]}  Kh8 {[%clk 0:02:17]} 18. Qh5 {[%clk 0:01:25]}  Nd3 {[%clk 0:01:57]} 19. Nhg6+ {[%clk 0:01:19]}  fxg6 {[%clk 0:01:54]} 20. Rxf8# {[%clk 0:01:20]} 1-0

[Event "November 21 Late 2023"]
[Site "https://www.chess.com"]
[Date "2023.11.21"]
[Round "1"]
[White "gpsji27"]
[Black "Janaszak, Dawid"]
[Result "1-0"]
[Board "130"]
[TimeControl "180+1"]
[BlackFideId "1119206"]
[WhiteElo "2305"]
[BlackElo "2218"]
[BlackTeam "POL"]
[WhiteClock "0:00:19"]
[BlackClock "0:00:37"]

1. d4 {[%clk 0:03:00]}  Nf6 {[%clk 0:02:58]} 2. Nf3 {[%clk 0:03:01]}  g6 {[%clk 0:02:59]} 3. Nc3 {[%clk 0:03:01]}  d5 {[%clk 0:02:57]} 4. Bf4 {[%clk 0:03:00]}  c6 {[%clk 0:02:54]} 5. e3 {[%clk 0:02:36]}  Qb6 {[%clk 0:02:53]} 6. Qc1 {[%clk 0:02:36]}  Bg7 {[%clk 0:02:52]} 7. Bd3 {[%clk 0:02:36]}  O-O {[%clk 0:02:52]} 8. O-O {[%clk 0:02:36]}  Na6 {[%clk 0:02:51]} 9. a3 {[%clk 0:02:35]}  Nh5 {[%clk 0:02:49]} 10. Bg3 {[%clk 0:02:35]}  Nxg3 {[%clk 0:02:49]} 11. hxg3 {[%clk 0:02:36]}  e6 {[%clk 0:02:40]} 12. Qd2 {[%clk 0:02:34]}  Nb8 {[%clk 0:02:35]} 13. a4 {[%clk 0:02:28]}  Nd7 {[%clk 0:02:35]} 14. a5 {[%clk 0:02:28]}  Qc7 {[%clk 0:02:35]} 15. b4 {[%clk 0:02:28]}  e5 {[%clk 0:02:34]} 16. dxe5 {[%clk 0:02:28]}  Nxe5 {[%clk 0:02:35]} 17. Nxe5 {[%clk 0:02:29]}  Qxe5 {[%clk 0:02:35]} 18. Ra3 {[%clk 0:02:24]}  Be6 {[%clk 0:02:29]} 19. Ne2 {[%clk 0:02:21]}  Rad8 {[%clk 0:02:26]} 20. Nd4 {[%clk 0:02:19]}  Bd7 {[%clk 0:02:19]} 21. c4 {[%clk 0:02:09]}  Qd6 {[%clk 0:02:14]} 22. c5 {[%clk 0:02:04]}  Qe7 {[%clk 0:02:12]} 23. a6 {[%clk 0:01:40]}  b6 {[%clk 0:02:12]} 24. Rc1 {[%clk 0:01:36]}  b5 {[%clk 0:02:10]} 25. Nb3 {[%clk 0:01:29]}  h5 {[%clk 0:02:05]} 26. Na5 {[%clk 0:01:29]}  h4 {[%clk 0:02:03]} 27. gxh4 {[%clk 0:01:26]}  Qxh4 {[%clk 0:02:04]} 28. Nb7 {[%clk 0:01:26]}  Rde8 {[%clk 0:02:02]} 29. Nd6 {[%clk 0:01:26]}  Re5 {[%clk 0:02:02]} 30. g3 {[%clk 0:01:20]}  Qh3 {[%clk 0:01:58]} 31. Bf1 {[%clk 0:01:18]}  Qe6 {[%clk 0:01:57]} 32. Bg2 {[%clk 0:01:15]}  Bh6 {[%clk 0:01:52]} 33. Rd3 {[%clk 0:01:07]}  Kg7 {[%clk 0:01:48]} 34. Qc3 {[%clk 0:01:06]}  f6 {[%clk 0:01:48]} 35. f4 {[%clk 0:00:58]}  Rh5 {[%clk 0:01:43]} 36. e4 {[%clk 0:00:47]}  dxe4 {[%clk 0:01:35]} 37. Nxe4 {[%clk 0:00:47]}  Rd5 {[%clk 0:01:28]} 38. Rcd1 {[%clk 0:00:44]}  Bc8 {[%clk 0:01:25]} 39. Rxd5 {[%clk 0:00:41]}  cxd5 {[%clk 0:01:25]} 40. Nd6 {[%clk 0:00:41]}  Bxa6 {[%clk 0:01:24]} 41. Bxd5 {[%clk 0:00:38]}  Qg4 {[%clk 0:01:21]} 42. Qf3 {[%clk 0:00:36]}  Qh3 {[%clk 0:01:15]} 43. Qg2 {[%clk 0:00:36]}  Qg4 {[%clk 0:01:13]} 44. Bf3 {[%clk 0:00:36]}  Qd7 {[%clk 0:01:11]} 45. c6 {[%clk 0:00:32]}  Qc7 {[%clk 0:01:09]} 46. Qe2 {[%clk 0:00:31]}  Rd8 {[%clk 0:01:05]} 47. Ne8+ {[%clk 0:00:30]}  Rxe8 {[%clk 0:01:02]} 48. Qxe8 {[%clk 0:00:31]}  Qb6+ {[%clk 0:01:03]} 49. Kg2 {[%clk 0:00:31]}  Kh7 {[%clk 0:00:43]} 50. Rd7+ {[%clk 0:00:30]}  Bg7 {[%clk 0:00:44]} 51. Be4 {[%clk 0:00:29]}  f5 {[%clk 0:00:40]} 52. Qf7 {[%clk 0:00:20]}  Qd4 {[%clk 0:00:37]} 53. Rxd4 {[%clk 0:00:19]} 1-0

[Event "November 21 Late 2023"]
[Site "https://www.chess.com"]
[Date "2023.11.21"]
[Round "1"]
[White "Leiva, Gianmarco"]
[Black "AndresDelgado77"]
[Result "1-0"]
[Board "131"]
[TimeControl "180+1"]
[WhiteFideId "3804399"]
[WhiteElo "2335"]
[BlackElo "2301"]
[WhiteTeam "PER"]
[WhiteClock "0:01:59"]
[BlackClock "0:00:00"]

1. b3 {[%clk 0:02:59]}  d5 {[%clk 0:02:52]} 2. Bb2 {[%clk 0:02:59]}  Bf5 {[%clk 0:02:42]} 3. Nf3 {[%clk 0:02:57]}  e6 {[%clk 0:02:30]} 4. g3 {[%clk 0:02:56]}  h6 {[%clk 0:02:26]} 5. Bg2 {[%clk 0:02:57]}  Nf6 {[%clk 0:01:47]} 6. O-O {[%clk 0:02:57]}  Nbd7 {[%clk 0:01:45]} 7. d3 {[%clk 0:02:57]}  Be7 {[%clk 0:01:45]} 8. Nbd2 {[%clk 0:02:57]}  O-O {[%clk 0:01:44]} 9. c4 {[%clk 0:02:57]}  c6 {[%clk 0:01:44]} 10. Rc1 {[%clk 0:02:56]}  a5 {[%clk 0:01:43]} 11. a3 {[%clk 0:02:56]}  Bh7 {[%clk 0:01:42]} 12. Qc2 {[%clk 0:02:55]}  b5 {[%clk 0:01:40]} 13. cxb5 {[%clk 0:02:54]}  cxb5 {[%clk 0:01:34]} 14. Nd4 {[%clk 0:02:48]}  Qb6 {[%clk 0:01:18]} 15. Qc6 {[%clk 0:02:37]}  Rab8 {[%clk 0:01:07]} 16. Qxb6 {[%clk 0:02:33]}  Rxb6 {[%clk 0:01:07]} 17. Nc6 {[%clk 0:02:34]}  Bd6 {[%clk 0:01:00]} 18. Nxa5 {[%clk 0:02:34]}  Ra8 {[%clk 0:00:56]} 19. b4 {[%clk 0:02:33]}  Be5 {[%clk 0:00:50]} 20. Bxe5 {[%clk 0:02:28]}  Nxe5 {[%clk 0:00:50]} 21. Ndb3 {[%clk 0:02:28]}  Bf5 {[%clk 0:00:47]} 22. Nd4 {[%clk 0:02:22]}  Bg4 {[%clk 0:00:42]} 23. h3 {[%clk 0:02:20]}  Bh5 {[%clk 0:00:42]} 24. g4 {[%clk 0:02:18]}  Bg6 {[%clk 0:00:41]} 25. f4 {[%clk 0:02:13]}  Ned7 {[%clk 0:00:35]} 26. Rc7 {[%clk 0:02:14]}  Kf8 {[%clk 0:00:35]} 27. g5 {[%clk 0:02:14]}  hxg5 {[%clk 0:00:35]} 28. fxg5 {[%clk 0:02:15]}  e5 {[%clk 0:00:29]} 29. gxf6 {[%clk 0:02:14]}  Nxf6 {[%clk 0:00:25]} 30. Nf3 {[%clk 0:02:03]}  e4 {[%clk 0:00:24]} 31. Nh4 {[%clk 0:02:03]}  Bh7 {[%clk 0:00:23]} 32. d4 {[%clk 0:02:01]}  Bg8 {[%clk 0:00:18]} 33. Nf5 {[%clk 0:02:01]}  Nh5 {[%clk 0:00:16]} 34. Kh2 {[%clk 0:01:59]}  g6 {[%clk 0:00:16]} 35. Nh6 {[%clk 0:01:59]}  Kg7 {[%clk 0:00:00]} 36. Nxf7 {[%clk 0:01:59]} 1-0